bitfinex/quotes_ETHUSD_20250925
["timestamp","ask_amount","ask_price","bid_price","bid_amount"]
[1758832563425,0.001,3903.0,3902.5,14.78415996]
[1758832564131,0.001,3903.0,3902.5,14.78115996]
[1758832564496,0.001,3903.0,3902.5,8.14315996]
[1758832564731,0.001,3903.0,3902.5,15.89778007]
[1758832565245,0.001,3903.0,3902.5,9.25978007]
[1758832565447,0.001,3903.0,3902.5,9.23845996]
[1758832565448,0.2169,3902.9,3902.5,9.23845996]
[1758832565659,0.6541,3902.6,3902.5,2.56245996]
[1758832565811,0.6541,3902.6,3902.5,4.501]
[1758832566015,0.6541,3902.6,3902.5,7.06345996]
[1758832566211,0.001,3902.6,3902.5,7.06345996]
[1758832567169,0.001,3902.6,3902.5,2.56245996]
[1758832567460,1.1966867,3902.6,3902.5,4.498]
[1758832568015,1.1966867,3902.6,3902.5,7.06045996]
[1758832568555,1.1966867,3902.6,3902.5,4.498]
[1758832569131,0.128,3902.5,3902.4,4.498]
[1758832569330,1.3236867,3902.5,3902.4,7.06052562]
[1758832569740,0.8874867,3902.5,3902.4,7.06052562]
[1758832569925,1.3236867,3902.5,3902.4,2.56252562]
[1758832570143,1.3236867,3902.5,3902.4,7.05552562]
[1758832570647,1.3236867,3902.5,3902.4,4.493]
[1758832570948,0.6705867,3902.5,3902.4,7.05552562]
[1758832571163,0.5425867,3902.5,3902.4,13.93884377]
[1758832571344,0.001,3902.6,3902.5,4.89545996]
[1758832571649,0.001,3902.6,3902.5,5.59105996]
[1758832572574,0.001,3902.6,3902.5,15.39205996]
[1758832572852,0.001,3903.0,3902.9,7.89519734]
[1758832573053,0.001,3903.0,3902.9,15.54752236]
[1758832573241,0.001,3903.0,3902.9,16.37112236]
[1758832574766,0.001,3903.9,3903.8,7.89460663]
[1758832574925,0.001,3903.9,3903.8,14.51660663]
[1758832575123,0.001,3903.9,3903.8,15.34020663]
[1758832575357,0.001,3903.9,3903.8,9.68002478]
[1758832575536,0.001,3903.9,3903.8,22.97402478]
[1758832576931,1e-08,3904.7,3904.6,7.8940818]
[1758832577134,1e-08,3904.7,3904.6,14.5140818]
[1758832577526,0.38720001,3905.6,3905.5,2.56049161]
[1758832577723,0.2169,3905.7,3905.5,7.04449161]
[1758832577961,0.2169,3905.7,3905.6,2.58603031]
[1758832578163,0.001,3906.0,3905.8,2.56029494]
[1758832578342,0.001,3906.0,3905.8,7.06689788]
[1758832578659,0.001,3906.0,3905.8,7.04129494]
[1758832578847,0.2179,3905.9,3905.8,7.04129494]
[1758832579837,0.001,3905.9,3905.8,7.04129494]
[1758832580054,0.001,3905.9,3905.8,7.83329494]
[1758832580252,0.001,3905.9,3905.8,8.85961996]
[1758832581752,0.001,3905.9,3905.8,8.85561996]
[1758832581975,0.001,3905.9,3905.8,10.98961996]
[1758832582666,0.001,3905.9,3905.8,14.22551996]
[1758832583267,0.001,3905.9,3905.8,14.69321996]
[1758832583866,0.001,3905.9,3905.8,7.61451996]
[1758832584071,0.001,3905.9,3905.8,13.98561996]
[1758832584769,0.001,3905.9,3905.8,4.02632502]
[1758832584972,0.665,3905.9,3905.1,2.134]
[1758832585281,0.665,3905.9,3905.2,6.607]
[1758832585282,0.2169,3905.8,3905.2,6.607]
[1758832585487,0.2169,3905.8,3905.7,2.56036049]
[1758832585779,0.2169,3905.8,3905.7,7.03336049]
[1758832586087,1.20647997,3905.8,3905.7,7.03336049]
[1758832586250,1.20647997,3905.8,3905.7,4.473]
[1758832586584,1.20647997,3905.8,3905.1,2.56072744]
[1758832586750,1.88510361,3905.7,3905.3,2.56059823]
[1758832586952,0.128,3905.4,3905.3,7.05720445]
[1758832587151,0.67047997,3905.4,3905.3,7.03159823]
[1758832587376,0.67047997,3905.4,3905.3,7.82359823]
[1758832587616,0.129,3905.9,3905.5,3.35248039]
[1758832587906,0.54300235,3905.8,3905.6,7.05501242]
[1758832588069,1.20700235,3905.7,3905.6,4.469]
[1758832588382,1.20700235,3905.7,3905.1,0.792]
[1758832588583,1.20700235,3905.7,3903.5,2.56175357]
[1758832588584,1.33500235,3905.6,3904.9,0.128]
[1758832588788,0.128,3905.3,3905.0,2.445]
[1758832588995,1.20700235,3905.2,3905.0,5.00581908]
[1758832589173,1.20700235,3905.1,3905.0,5.00581908]
[1758832589374,0.128,3905.3,3905.2,2.56068831]
[1758832589574,0.67112289,3905.3,3905.2,7.02968831]
[1758832589773,0.67112289,3905.3,3905.2,4.469]
[1758832590619,1.33512289,3905.3,3904.7,0.128]
[1758832590777,0.128,3904.8,3904.6,7.02906922]
[1758832590980,0.75995167,3904.7,3904.6,7.02906922]
[1758832591296,0.54305167,3904.7,3904.6,7.02906922]
[1758832591498,0.54305167,3904.7,3904.6,4.468]
[1758832591699,0.75995167,3904.7,3904.6,4.468]
[1758832592005,0.75995167,3904.7,3904.6,4.467]
[1758832592204,0.75995167,3904.7,3904.6,7.0280818]
[1758832592398,0.54305167,3904.7,3904.6,2.5610818]
[1758832592597,0.54305167,3904.7,3904.6,7.84369261]
[1758832592899,0.54305167,3904.7,3904.6,7.8180818]
[1758832593813,0.128,3905.2,3905.0,2.56075405]
[1758832594013,0.54357142,3905.1,3904.9,2.56086283]
[1758832594313,0.128,3905.2,3905.1,2.56075388]
[1758832594525,0.67149406,3905.2,3905.1,3.37836141]
[1758832594823,0.128,3905.5,3905.4,2.56055717]
[1758832595051,0.67152203,3905.5,3905.4,4.462]
[1758832595387,0.67152203,3905.5,3905.1,0.792]
[1758832595689,1.20752203,3905.4,3904.9,3.526]
[1758832595988,3.89617986,3905.3,3904.9,3.526]
[1758832596183,1.20752203,3905.2,3904.9,3.526]
[1758832596408,0.54352203,3905.1,3904.9,3.526]
[1758832596617,1.20752203,3905.0,3904.2,2.56130099]
[1758832596817,0.128,3904.8,3904.3,7.02126788]
[1758832597022,0.54352203,3904.7,3904.4,0.792]
[1758832597189,0.54352203,3904.6,3904.4,0.792]
[1758832597398,0.128,3904.8,3904.4,0.792]
[1758832597597,0.54411723,3904.7,3904.4,0.792]
[1758832597919,0.54411723,3904.6,3904.4,0.792]
[1758832598088,0.128,3904.8,3904.4,0.792]
[1758832598290,0.54413504,3904.7,3904.4,0.792]
[1758832598491,0.54413504,3904.6,3904.4,0.792]
[1758832598686,0.128,3904.8,3904.4,0.792]
[1758832598900,0.54467027,3904.7,3904.4,0.792]
[1758832599133,0.54467027,3904.6,3904.4,0.792]
[1758832599336,0.54514266,3904.5,3904.4,3.35317102]
[1758832599535,0.54514266,3904.5,3904.4,0.792]
[1758832600128,0.54514266,3904.5,3904.4,4.456]
[1758832600540,0.54514266,3904.5,3904.3,0.792]
[1758832600853,0.54514266,3904.5,3901.0,0.77004129]
[1758832600854,0.128,3904.3,3904.0,4.455]
[1758832601034,0.6823766,3904.1,3904.0,4.455]
[1758832601349,2.56154102,3903.9,3903.8,0.002]
[1758832601508,4.00922385,3903.9,3903.8,0.002]
[1758832601708,4.62978791,3903.9,3903.8,0.002]
[1758832601946,5.98619145,3903.9,3903.8,0.002]
[1758832602149,1.9015462,3903.9,3903.8,0.002]
[1758832602459,1.45468444,3903.9,3903.8,0.002]
[1758832602613,0.54514266,3903.9,3903.8,0.002]
[1758832602812,3.77068368,3903.9,3903.8,0.002]
[1758832603124,4.68022546,3903.9,3903.8,0.002]
[1758832603312,3.77068368,3903.9,3903.8,0.002]
[1758832603946,4.68022546,3903.9,3903.8,0.002]
[1758832604107,5.54003039,3903.9,3903.8,0.002]
[1758832604307,7.63048861,3903.9,3903.8,0.002]
[1758832604506,8.99338362,3903.9,3903.8,0.002]
[1758832604743,7.63048861,3903.9,3903.8,0.002]
[1758832604959,2.56167225,3903.7,3901.9,0.247]
[1758832605253,0.68133291,3902.6,3901.6,0.034]
[1758832605411,3.10760262,3902.5,3901.6,0.034]
[1758832605612,2.56282243,3902.0,3901.6,0.034]
[1758832605864,0.54422993,3901.9,3901.6,0.034]
[1758832606022,2.56298536,3901.7,3901.6,0.034]
[1758832606215,3.10721529,3901.7,3901.6,0.034]
[1758832606416,3.22698536,3901.7,3901.6,0.034]
[1758832606947,0.54422993,3901.8,3901.6,0.034]
[1758832607240,2.56286871,3901.9,3901.6,0.034]
[1758832607447,2.56298536,3901.7,3901.6,0.034]
[1758832608014,7.11789229,3901.7,3901.6,0.034]
[1758832608235,7.66212222,3901.7,3901.6,0.034]
[1758832609112,12.11712222,3901.7,3901.6,0.034]
[1758832609547,2.56318244,3901.4,3901.3,0.002]
[1758832609849,8.08134469,3901.4,3901.3,0.002]
[1758832610050,9.31347462,3901.4,3901.3,0.002]
[1758832610225,6.32431237,3901.4,3901.3,0.002]
[1758832610440,12.69641237,3901.4,3901.3,0.002]
[1758832610741,12.15218244,3901.4,3901.3,0.002]
[1758832611363,13.38147325,3901.4,3901.3,0.002]
[1758832611535,13.38111797,3901.4,3901.3,0.002]
[1758832611710,15.06224029,3901.4,3901.3,0.002]
[1758832611932,26.65053629,3901.4,3901.3,0.002]
[1758832612126,27.3318692,3901.4,3901.3,0.002]
[1758832612423,23.32406929,3901.4,3901.3,0.002]
[1758832612615,39.65982329,3901.4,3901.3,0.002]
[1758832612819,2.56344527,3901.0,3900.9,1e-08]
[1758832613017,11.25435785,3901.0,3900.9,1e-08]
[1758832613323,12.48265252,3901.0,3900.9,1e-08]
[1758832613539,26.50343952,3901.0,3900.9,1e-08]
[1758832614317,25.82851233,3901.0,3900.9,1e-08]
[1758832614517,26.50305089,3901.0,3900.9,1e-08]
[1758832615245,13.47172533,3901.0,3900.9,1e-08]
[1758832615822,13.25482533,3901.0,3900.9,1e-08]
[1758832616423,6.1197898,3901.0,3900.9,1e-08]
[1758832616652,6.65895952,3901.0,3900.9,1e-08]
[1758832616860,10.01844527,3901.0,3900.9,1e-08]
[1758832617074,3.0,3901.0,3900.9,1e-08]
[1758832617365,10.01844527,3901.0,3900.9,0.24540001]
[1758832617725,10.01844527,3901.0,3900.9,1e-08]
[1758832619158,11.24545104,3901.0,3900.9,1e-08]
[1758832619358,12.83982795,3901.0,3900.9,1e-08]
[1758832620258,13.51366338,3901.0,3900.9,1e-08]
[1758832620582,8.38482795,3901.0,3900.9,1e-08]
[1758832620787,27.28116101,3901.0,3900.9,1e-08]
[1758832620985,26.13215795,3901.0,3900.9,1e-08]
[1758832621187,14.50182795,3901.0,3900.9,1e-08]
[1758832621359,34.29033795,3901.0,3900.9,1e-08]
[1758832621560,21.38460683,3901.0,3900.9,1e-08]
[1758832621758,2.56370814,3900.6,3900.5,0.002]
[1758832621990,13.68958142,3900.6,3900.5,0.002]
[1758832622292,30.16749071,3900.6,3900.5,0.002]
[1758832622488,9.2384114,3900.6,3900.5,0.002]
[1758832622655,16.70681391,3900.6,3900.5,0.002]
[1758832622850,16.92371391,3900.6,3900.5,0.002]
[1758832623056,17.39471391,3900.6,3900.5,0.002]
[1758832623254,18.2932516,3900.6,3900.5,0.002]
[1758832623488,18.45634291,3900.6,3900.5,0.002]
[1758832623690,20.18797757,3900.6,3900.5,0.002]
[1758832623876,12.17997757,3900.6,3900.5,0.002]
[1758832624078,15.82619416,3900.6,3900.5,0.002]
[1758832624281,26.49264216,3900.6,3900.5,0.002]
[1758832624614,22.67548357,3900.6,3900.5,0.002]
[1758832624887,14.92807757,3900.6,3900.5,0.002]
[1758832625395,16.29074339,3900.6,3900.5,0.002]
[1758832626590,14.92807757,3900.6,3900.5,0.002]
[1758832627158,33.96138457,3900.6,3900.5,0.002]
[1758832627361,2.56436557,3899.6,3899.5,0.002]
[1758832627567,7.54947134,3899.6,3899.5,0.002]
[1758832628106,7.54947134,3899.6,3899.5,0.6877]
[1758832628287,7.54847134,3899.6,3899.5,0.6877]
[1758832628804,8.22502454,3899.6,3899.5,0.6877]
[1758832628988,7.54847134,3899.6,3899.5,0.6877]
[1758832629365,8.44964168,3899.6,3899.5,0.6877]
[1758832629709,7.54847134,3899.6,3899.5,0.6877]
[1758832630012,7.54847134,3899.6,3899.5,0.002]
[1758832630209,8.9085226,3899.6,3899.5,0.002]
[1758832630376,11.9085226,3899.6,3899.5,0.002]
[1758832632500,13.72237105,3899.6,3899.5,0.002]
[1758832632704,11.9085226,3899.6,3899.5,0.6877]
[1758832633089,11.9085226,3899.6,3899.5,0.2308]
[1758832633417,2.56462864,3899.2,3899.1,0.6877]
[1758832633566,7.54073441,3899.2,3899.1,0.002]
[1758832633767,0.53910577,3899.2,3899.1,0.002]
[1758832634008,0.66710577,3899.2,3899.1,0.002]
[1758832634208,0.66710577,3899.2,3899.1,0.6877]
[1758832634817,2.56489176,3898.8,3898.7,0.002]
[1758832635123,2.5658131,3897.4,3897.3,0.6857]
[1758832635281,3.0,3897.3,3896.9,0.2288]
[1758832635469,2.56608158,3897.0,3896.5,0.2288]
[1758832635669,6.81692332,3896.9,3896.5,0.2288]
[1758832635870,2.56632565,3896.7,3896.3,0.4569]
[1758832636180,5.00110577,3896.6,3896.4,0.2288]
[1758832636491,0.53910577,3896.5,3895.6,0.02566998]
[1758832636807,0.67993943,3895.7,3895.5,2.56704879]
[1758832637022,0.67993943,3895.7,3895.6,2.79579866]
[1758832637175,1.22387788,3895.7,3895.6,0.2288]
[1758832637378,0.54393845,3895.7,3895.6,0.6857]
[1758832638026,1.45052437,3895.7,3895.6,0.6857]
[1758832638172,1.45052437,3895.7,3895.6,3.25269866]
[1758832638373,0.54393845,3895.7,3895.6,3.25269866]
[1758832639376,1.22203129,3895.7,3895.6,0.6857]
[1758832639576,0.54393845,3895.7,3895.6,0.6857]
[1758832639825,0.54393845,3895.7,3895.6,3.25269866]
[1758832640272,1.22159847,3895.7,3895.6,3.25269866]
[1758832640473,1.22159847,3895.7,3895.6,4.6523515]
[1758832640474,0.54393845,3895.7,3895.6,4.6523515]
[1758832640730,0.54393845,3895.7,3895.6,4.62668152]
[1758832641020,0.67766002,3896.4,3896.3,0.792]
[1758832641171,0.54218204,3896.4,3896.3,4.03753748]
[1758832642126,0.54218204,3896.4,3896.3,0.2383]
[1758832642289,1.44876796,3896.4,3895.8,2.56686688]
[1758832642493,0.67748807,3896.1,3895.8,2.56686688]
[1758832642688,0.54218204,3896.0,3895.9,0.679]
[1758832643020,0.54218204,3896.0,3895.9,3.24580099]
[1758832643579,0.54218204,3896.0,3895.9,0.679]
[1758832643972,0.54218204,3896.0,3895.9,3.24580099]
[1758832644374,0.54218204,3896.0,3895.9,4.03780099]
[1758832644605,0.54218204,3896.0,3895.9,4.6982713]
[1758832645086,0.54218204,3896.0,3895.9,4.03780099]
[1758832645289,0.67748807,3896.7,3896.3,2.56648908]
[1758832645488,1.21937164,3896.6,3896.5,2.56640574]
[1758832645693,1.21937164,3896.6,3896.5,3.24540574]
[1758832646298,0.54188357,3896.6,3896.5,4.03740574]
[1758832646501,0.54188357,3896.6,3896.5,0.679]
[1758832646687,1.21937164,3896.6,3896.4,2.56646462]
[1758832647013,0.66988357,3896.5,3896.4,2.56646462]
[1758832647190,0.54188357,3896.5,3896.4,2.56646462]
[1758832647719,0.54188357,3896.5,3896.4,3.24546462]
[1758832647922,0.54188357,3896.5,3896.4,4.6314665]
[1758832648635,0.54188357,3896.5,3896.4,9.0894665]
[1758832648837,0.54188357,3896.5,3896.4,9.2174665]
[1758832649033,0.54188357,3896.5,3896.4,10.7574665]
[1758832650633,0.128,3897.3,3896.9,3.35814231]
[1758832650634,0.67748807,3897.0,3896.9,3.35814231]
[1758832650938,0.67748807,3897.2,3897.1,3.35801062]
[1758832651118,0.90658592,3897.4,3897.3,3.48587894]
[1758832651119,0.67748807,3897.4,3897.3,3.48587894]
[1758832651296,0.90658592,3897.7,3897.3,3.48587894]
[1758832651297,0.67748807,3897.5,3897.3,8.61987894]
[1758832651496,0.90658592,3897.7,3897.4,4.0368131]
[1758832651696,0.90658592,3897.7,3897.6,2.56568144]
[1758832651897,0.90658592,3897.8,3897.7,2.56561561]
[1758832652136,1.03458592,3898.0,3897.9,2.56548397]
[1758832652440,0.128,3898.0,3897.9,2.56548397]
[1758832652731,0.90529672,3898.2,3898.0,3.35741816]
[1758832652933,1.03329672,3898.4,3898.3,0.792]
[1758832653232,0.90529672,3898.5,3898.4,2.56515493]
[1758832653411,0.90529672,3898.6,3898.5,2.56508913]
[1758832653829,0.129,3898.7,3898.6,2.56502334]
[1758832656950,0.129,3898.7,3898.6,3.83802522]
[1758832657151,0.001,3898.7,3898.6,4.63002522]
[1758832657324,0.001,3898.7,3898.6,9.07902522]
[1758832660251,0.001,3898.7,3897.9,0.2383]
[1758832660455,0.128,3898.5,3898.4,2.5651352]
[1758832660957,0.128,3898.5,3898.4,3.26978674]
[1758832661248,0.001,3898.7,3898.6,2.56502334]
[1758832661418,0.001,3898.7,3898.6,9.46902334]
[1758832661621,0.001,3898.7,3898.6,10.74033919]
[1758832662352,0.001,3898.7,3898.6,8.54902334]
[1758832663689,0.001,3898.7,3898.6,10.14802334]
[1758832665298,0.001,3898.7,3898.6,9.46902334]
[1758832665507,0.001,3898.7,3898.6,8.54902334]
[1758832665713,0.001,3898.7,3898.3,0.128]
[1758832665992,0.129,3898.7,3898.6,2.56502334]
[1758832666811,0.6629,3898.7,3897.5,1.54]
[1758832667092,2.5651729,3898.4,3897.6,3.713]
[1758832667391,2.7820729,3898.4,3897.6,6.27861899]
[1758832667557,2.56522073,3898.3,3897.6,3.713]
[1758832667765,3.01022073,3898.3,3897.6,3.713]
[1758832667972,2.78221893,3898.2,3897.6,3.713]
[1758832668172,2.56536167,3898.1,3897.6,3.713]
[1758832668389,0.2169,3898.0,3897.6,3.713]
[1758832669662,0.57923774,3898.2,3897.7,2.56556214]
[1758832669862,2.56522117,3898.3,3897.7,2.56556214]
[1758832670058,2.56522117,3898.3,3897.6,2.56566877]
[1758832670298,2.56528769,3898.2,3897.6,4.438]
[1758832670508,2.56535381,3898.1,3897.6,4.438]
[1758832670670,0.2169,3898.1,3897.6,4.438]
[1758832671198,2.56534121,3898.2,3897.6,4.438]
[1758832671403,2.56534121,3898.2,3897.5,2.56569392]
[1758832671787,4.23170214,3898.4,3897.5,2.56574014]
[1758832672097,5.75551294,3898.4,3897.5,2.56570114]
[1758832672280,2.56528919,3898.2,3897.5,2.56570114]
[1758832672482,2.56536734,3898.1,3897.4,7.00179888]
[1758832672692,0.2169,3898.1,3897.5,2.56573372]
[1758832673004,2.56539754,3898.1,3897.4,7.00179361]
[1758832673191,2.56530097,3898.2,3897.4,7.00179361]
[1758832673388,3.3259448,3898.3,3897.4,7.00180963]
[1758832673590,3.3259448,3898.3,3896.6,3.23671711]
[1758832673591,2.17717556,3898.2,3896.6,3.23671711]
[1758832673791,2.17717556,3898.2,3896.7,4.435]
[1758832673792,2.56569421,3897.6,3896.7,4.435]
[1758832674023,0.2169,3897.5,3896.7,4.435]
[1758832674170,0.2169,3897.5,3896.5,2.378]
[1758832674171,2.56601294,3897.1,3896.5,0.002]
[1758832674589,0.2169,3897.1,3896.5,0.002]
[1758832674795,2.56607646,3897.0,3896.5,0.002]
[1758832675172,2.56602075,3897.1,3896.5,0.002]
[1758832675377,2.56601062,3897.1,3896.5,0.002]
[1758832675773,0.67952817,3897.9,3896.6,0.6704]
[1758832675973,2.56598944,3897.2,3896.5,2.5684056]
[1758832676291,2.78271944,3897.4,3896.5,0.794]
[1758832676489,2.56588514,3897.3,3896.5,0.794]
[1758832676806,0.128,3896.8,3896.5,0.002]
[1758832677908,0.128,3896.8,3896.6,2.56633312]
[1758832678110,0.128,3896.8,3896.5,0.794]
[1758832678300,0.54472118,3897.6,3896.8,0.792]
[1758832678609,0.67952817,3897.8,3896.8,0.792]
[1758832678610,5.69376053,3897.5,3896.9,5.1064]
[1758832679014,5.69376053,3897.5,3896.9,7.67253538]
[1758832679215,0.128,3897.5,3897.0,2.56607578]
[1758832679584,0.128,3897.5,3896.9,7.00213983]
[1758832679907,0.128,3897.5,3897.0,2.80507646]
[1758832680208,3.128,3897.5,3897.0,0.239]
[1758832680507,0.128,3897.5,3896.9,4.8674]
[1758832680804,2.69374876,3897.5,3896.8,3.35816814]
[1758832681007,0.128,3897.5,3896.8,0.792]
[1758832681209,2.56587757,3897.4,3896.7,0.239]
[1758832681412,0.128,3896.9,3896.7,0.26466274]
[1758832681908,0.128,3896.9,3896.7,2.59192478]
[1758832682103,0.128,3896.9,3896.5,4.438]
[1758832683006,0.128,3896.9,3896.6,2.59200327]
[1758832683216,0.128,3896.9,3896.6,2.56633988]
[1758832683514,0.54440039,3897.4,3897.3,2.56587894]
[1758832683699,2.56562307,3897.7,3896.8,2.69419898]
[1758832683903,0.128,3897.3,3897.1,2.56599608]
[1758832684101,0.54420666,3897.9,3897.2,3.23694478]
[1758832684308,0.128,3897.6,3897.5,2.56574727]
[1758832684696,0.128,3897.6,3896.8,2.6941494]
[1758832684697,0.128,3897.6,3897.4,2.56576043]
[1758832684892,7.54577897,3898.0,3897.3,2.565868]
[1758832685095,0.128,3897.4,3896.6,0.002]
[1758832685304,0.128,3897.1,3896.7,2.56627402]
[1758832685508,0.128,3897.1,3896.9,2.56609193]
[1758832685717,0.128,3897.1,3896.6,4.439]
[1758832686030,0.128,3897.1,3896.6,0.002]
[1758832686031,0.128,3896.9,3896.6,0.002]
[1758832686421,0.2169,3896.8,3896.6,0.002]
[1758832686734,2.56627402,3896.7,3896.6,0.002]
[1758832686907,3.21657402,3896.7,3896.6,0.002]
[1758832687228,0.6503,3896.7,3896.6,0.002]
[1758832687599,3.0,3896.9,3896.6,0.002]
[1758832687794,0.128,3896.7,3896.6,0.002]
[1758832689393,0.128,3896.7,3896.6,2.56833988]
[1758832689600,0.128,3896.7,3896.1,0.002]
[1758832689601,30.0,3896.6,3895.7,0.002]
[1758832689799,5.56686688,3895.8,3895.7,0.002]
[1758832689994,16.71160752,3895.8,3895.7,0.002]
[1758832690228,14.25161384,3895.8,3895.7,0.002]
[1758832690534,17.09561384,3895.8,3895.7,0.002]
[1758832690695,14.25161384,3895.8,3895.7,0.002]
[1758832690899,14.25061384,3895.8,3895.7,0.002]
[1758832691510,12.11261384,3895.8,3895.7,0.002]
[1758832691709,11.68274696,3895.8,3895.7,0.002]
[1758832691899,11.68174696,3895.8,3895.7,0.002]
[1758832692118,9.11034696,3895.8,3895.7,0.002]
[1758832692319,11.03144696,3895.8,3895.7,0.002]
[1758832693018,0.54412932,3895.8,3895.7,0.002]
[1758832693216,4.055,3895.8,3895.7,0.002]
[1758832693799,32.70711566,3895.8,3895.7,0.002]
[1758832694051,32.70711566,3895.8,3894.1,2.56798064]
[1758832694052,2.56746854,3894.9,3894.1,2.56796933]
[1758832694233,2.56746854,3894.9,3893.8,0.4289]
[1758832694234,4.48,3894.8,3894.0,2.56800716]
[1758832694533,5.45104915,3894.8,3894.1,0.671]
[1758832694832,2.56760291,3894.7,3893.9,2.56805387]
[1758832695038,3.0,3894.5,3892.3,0.2421]
[1758832695214,2.56798746,3894.1,3892.5,2.56903695]
[1758832695413,0.67791903,3893.9,3891.9,0.2421]
[1758832695612,15.35017277,3894.0,3890.7,0.13417025]
[1758832695613,0.67791903,3893.0,3890.7,0.37627025]
[1758832695939,0.67791903,3893.0,3890.8,0.69670165]
[1758832695940,0.67791903,3892.4,3890.8,0.69670165]
[1758832696235,4.533,3892.3,3890.9,0.69670099]
[1758832696411,0.2149,3892.9,3891.4,2.56971516]
[1758832696601,3.0,3892.4,3891.5,3.24067168]
[1758832696806,0.02570049,3892.3,3891.6,2.81172816]
[1758832697036,0.02570049,3892.3,3888.8,0.49520475]
[1758832697231,3.56535043,3892.3,3890.7,0.2421]
[1758832697436,2.56963396,3891.7,3890.8,0.45460165]
[1758832697632,2.56963396,3891.7,3889.7,0.4289]
[1758832697633,4.56,3891.7,3889.7,0.4289]
[1758832697846,2.56990182,3891.2,3890.0,0.2421]
[1758832698028,4.13000049,3891.6,3890.0,0.2421]
[1758832698029,4.58670049,3891.1,3890.1,3.036628]
[1758832698224,0.02570049,3891.1,3890.2,2.81955773]
[1758832698425,4.563,3891.3,3890.3,0.74070495]
[1758832698426,0.02570049,3891.3,3890.3,0.74070495]
[1758832698625,2.24570049,3891.5,3890.4,0.715]
[1758832698941,4.81327054,3891.4,3890.4,0.715]
[1758832699161,3.25027054,3891.4,3890.5,1.041]
[1758832699322,3.25027054,3891.4,3890.5,2.8193618]
[1758832699644,0.128,3890.5,3890.1,2.57059297]
[1758832699851,0.02570049,3891.1,3889.7,0.466]
[1758832700154,3.0,3891.0,3889.9,0.92]
[1758832700369,0.128,3890.6,3890.5,2.5703637]
[1758832700580,0.128,3890.6,3890.5,3.2853637]
[1758832700947,0.2149,3892.2,3890.5,0.715]
[1758832701271,0.128,3891.1,3890.7,2.57023157]
[1758832701471,0.128,3891.1,3890.6,0.466]
[1758832701636,0.128,3890.9,3890.8,2.57015375]
[1758832702084,0.128,3890.9,3890.2,0.843]
[1758832702385,2.57001835,3891.1,3889.8,0.249]
[1758832702540,1.27459232,3891.0,3890.0,2.57067733]
[1758832702734,1.27459232,3891.0,3890.1,0.74070628]
[1758832702991,0.02570049,3891.0,3890.6,2.57024839]
[1758832703161,0.2149,3891.7,3890.2,0.792]
[1758832703162,0.02570049,3891.3,3890.7,0.74070231]
[1758832703469,3.0,3891.8,3890.8,2.57016551]
[1758832703688,3.0,3891.8,3890.7,0.715]
[1758832703689,0.02570049,3891.7,3891.0,2.57003341]
[1758832703838,3.0,3891.7,3891.0,2.57001936]
[1758832704057,1.25385076,3891.6,3891.0,2.57001936]
[1758832704256,1.25385076,3891.6,3890.7,0.715]
[1758832704539,0.02570049,3891.5,3890.9,2.57008319]
[1758832704734,0.02570049,3891.5,3891.1,2.56991974]
[1758832704969,0.02570049,3891.5,3890.9,2.57005668]
[1758832705340,0.02570049,3891.5,3890.9,2.57009219]
[1758832705541,0.02570049,3891.5,3891.0,2.57002474]
[1758832705734,0.02570049,3891.5,3891.1,2.56994018]
[1758832705934,0.02570049,3891.5,3890.2,0.792]
[1758832705935,2.56976923,3891.4,3890.5,2.57032297]
[1758832706167,1.12218557,3891.5,3890.2,0.249]
[1758832706168,0.02570049,3891.3,3890.2,0.249]
[1758832706778,0.02570049,3891.3,3890.2,2.57054455]
[1758832706779,3.0,3891.0,3890.2,2.57054455]
[1758832706979,3.0,3891.0,3890.1,0.002]
[1758832706980,3.0,3890.8,3890.1,0.002]
[1758832707144,2.57042467,3890.5,3890.1,0.002]
[1758832707339,2.59613038,3890.4,3890.1,0.002]
[1758832707666,0.02570049,3890.4,3890.1,0.002]
[1758832708338,3.0,3890.7,3890.1,0.002]
[1758832708339,4.589,3890.5,3890.1,0.002]
[1758832708538,2.57056192,3890.2,3890.1,0.002]
[1758832708733,5.59626241,3890.2,3890.1,0.002]
[1758832708965,8.1274935,3890.2,3890.1,0.002]
[1758832709177,7.59215259,3890.2,3890.1,0.002]
[1758832709380,8.12733272,3890.2,3890.1,0.002]
[1758832710661,12.2857708,3890.2,3890.1,0.002]
[1758832710838,7.587,3890.2,3890.1,0.002]
[1758832711038,3.0,3890.2,3890.1,0.002]
[1758832711243,7.587,3890.2,3890.1,0.002]
[1758832712268,4.586,3890.3,3890.1,0.002]
[1758832712474,0.02570049,3890.2,3890.1,2.572628]
[1758832712778,3.0,3890.4,3890.2,2.57054182]
[1758832712982,3.0,3890.4,3890.1,0.002]
[1758832712983,0.02570049,3890.3,3890.1,0.002]
[1758832713768,0.02570049,3890.3,3890.2,2.81956192]
[1758832713987,2.141,3891.4,3890.8,2.57012118]
[1758832714186,4.60770049,3891.3,3890.4,2.57042977]
[1758832714490,3.0,3891.2,3890.2,0.715]
[1758832714666,1.31113861,3891.1,3890.3,2.57049584]
[1758832714849,1.31113861,3891.1,3890.2,0.715]
[1758832715049,0.02570049,3891.1,3891.0,2.57003341]
[1758832715251,4.581,3891.3,3891.2,2.56990131]
[1758832715470,0.56277344,3891.5,3891.2,2.56990131]
[1758832715669,4.581,3891.4,3890.8,0.249]
[1758832715883,0.02570049,3891.3,3891.1,2.56991248]
[1758832716078,4.58,3891.4,3891.3,2.56983527]
[1758832716284,0.56277344,3891.6,3890.8,0.249]
[1758832716605,0.02570049,3891.7,3891.6,2.56963716]
[1758832716771,0.02570049,3891.8,3891.7,2.56957113]
[1758832717104,0.53707295,3892.0,3891.8,2.56947842]
[1758832717105,4.60370049,3892.0,3891.8,2.56947842]